bitfinex/quotes_BTCUSD_20260103
["timestamp","ask_amount","ask_price","bid_price","bid_amount"]
[1767424693875,0.00089902,89696.0,89690.0,0.0574645]
[1767424694077,0.01034989,89695.0,89690.0,0.04631499]
[1767424694310,0.01204778,89696.0,89690.0,0.04631499]
[1767424694486,0.00089902,89696.0,89690.0,0.04631499]
[1767424694682,0.00089902,89696.0,89694.0,0.04631499]
[1767424694948,0.01114889,89695.0,89680.0,0.01115075]
[1767424695234,0.01114889,89695.0,89687.0,0.01114988]
[1767424695448,0.01114914,89693.0,89685.0,0.01115013]
[1767424695941,0.01114914,89693.0,89684.0,0.01115026]
[1767424696147,0.01114914,89693.0,89685.0,0.01115013]
[1767424696294,0.01114901,89694.0,89685.0,0.01115013]
[1767424696841,0.01114914,89693.0,89686.0,0.01115001]
[1767424697042,0.01114914,89693.0,89685.0,0.01115013]
[1767424697043,0.01114914,89693.0,89684.0,0.01115026]
[1767424697248,0.01114939,89691.0,89684.0,0.01115026]
[1767424697424,0.01114926,89692.0,89684.0,0.01115026]
[1767424697811,0.01114951,89690.0,89683.0,0.01115038]
[1767424698191,0.01114914,89693.0,89685.0,0.01115013]
[1767424698854,0.01114939,89691.0,89684.0,0.01115026]
[1767424699093,0.01114926,89692.0,89685.0,0.01115013]
[1767424699326,0.01114939,89691.0,89684.0,0.01115026]
[1767424699525,0.01114926,89692.0,89685.0,0.01115013]
[1767424699722,0.01114939,89691.0,89684.0,0.01115026]
[1767424700352,0.01114939,89691.0,89683.0,0.01115038]
[1767424700684,0.01114939,89691.0,89684.0,0.01115026]
[1767424700897,0.01114951,89690.0,89683.0,0.01115038]
[1767424701104,0.01114939,89691.0,89684.0,0.01115026]
[1767424701299,0.01115075,89680.0,89674.0,0.01930846]
[1767424701505,0.06690687,89677.0,89674.0,0.01930846]
[1767424701657,0.01115088,89679.0,89674.0,0.01930846]
[1767424701864,0.011151,89678.0,89674.0,0.01930846]
[1767424702070,0.01115088,89679.0,89674.0,0.01930846]
[1767424702275,0.01115063,89681.0,89674.0,0.0111515]
[1767424702471,0.0223105,89682.0,89673.0,0.01115162]
[1767424702826,0.01115026,89684.0,89676.0,0.01115125]
[1767424702964,0.01116,89686.0,89679.0,0.05575384]
[1767424703166,0.01116,89686.0,89682.0,0.04631499]
[1767424703652,0.01116,89686.0,89681.0,0.01115063]
[1767424704008,0.01114988,89687.0,89680.0,0.01115075]
[1767424704165,0.01115013,89685.0,89674.0,0.0111515]
[1767424704364,0.000999,89680.0,89677.0,0.01115113]
[1767424704588,0.02230988,89687.0,89680.0,0.01115075]
[1767424705552,0.01116,89687.0,89678.0,0.04631499]
[1767424705734,0.01116,89687.0,89679.0,0.01115088]
[1767424705945,0.02230988,89687.0,89679.0,0.01115088]
[1767424706353,0.01116,89687.0,89681.0,0.01115063]
[1767424706699,0.02230988,89687.0,89679.0,0.01115088]
[1767424706906,0.02230988,89687.0,89681.0,0.01115063]
[1767424707142,0.02230988,89687.0,89680.0,0.01115075]
[1767424707549,0.02230988,89687.0,89681.0,0.01115063]
[1767424707753,0.02230988,89687.0,89680.0,0.01115075]
[1767424707955,0.01114976,89688.0,89687.0,0.000999]
[1767424707956,0.01116,89688.0,89687.0,0.000999]
[1767424708534,0.02230976,89688.0,89682.0,0.0111505]
[1767424708734,0.01116,89688.0,89682.0,0.0111505]
[1767424709122,0.010161,89688.0,89683.0,0.01115038]
[1767424709325,0.010161,89688.0,89682.0,0.0111505]
[1767424710075,0.05837898,89679.0,89659.0,0.04978582]
[1767424710275,0.000999,89682.0,89679.0,0.0609367]
[1767424710443,0.00049541,89689.0,89685.0,0.04978582]
[1767424710664,0.01116,89687.0,89685.0,0.04978582]
[1767424710868,0.010161,89687.0,89684.0,0.01115026]
[1767424711071,0.01116,89688.0,89684.0,0.01115026]
[1767424711271,0.000999,89684.0,89683.0,0.0609362]
[1767424711487,0.000999,89684.0,89683.0,0.04978582]
[1767424711662,0.01116,89688.0,89683.0,0.04978582]
[1767424711866,0.0103862,89697.0,89684.0,0.06093608]
[1767424712081,0.01116,89698.0,89691.0,0.0668963]
[1767424712287,0.01116,89698.0,89691.0,0.01114939]
[1767424712542,0.01116,89698.0,89692.0,0.01114926]
[1767424713261,0.01114839,89699.0,89692.0,0.01114926]
[1767424713433,0.02230827,89700.0,89693.0,0.01114914]
[1767424713634,0.01114839,89699.0,89693.0,0.01114914]
[1767424713836,0.02230827,89700.0,89693.0,0.01114914]
[1767424714226,0.01114839,89699.0,89692.0,0.01114926]
[1767424714644,0.02230827,89700.0,89693.0,0.01114914]
[1767424714855,0.00036071,89701.0,89696.0,0.01114876]
[1767424715197,0.00036071,89701.0,89695.0,0.01114889]
[1767424715337,0.00036071,89701.0,89696.0,0.01114876]
[1767424715532,0.00036071,89701.0,89697.0,0.01114864]
[1767424715741,0.00036071,89701.0,89696.0,0.01114876]
[1767424716112,0.00036071,89701.0,89697.0,0.01114864]
[1767424716287,0.00036071,89701.0,89697.0,0.01104865]
[1767424716787,0.00036071,89701.0,89696.0,0.01114876]
[1767424716989,0.00036071,89701.0,89697.0,0.01114864]
[1767424717189,0.00036071,89701.0,89692.0,0.0557461]
[1767424717190,0.01150885,89701.0,89693.0,0.01114914]
[1767424717393,0.000999,89697.0,89694.0,0.01114901]
[1767424717992,0.00036071,89701.0,89695.0,0.01114889]
[1767424718198,0.00036071,89701.0,89696.0,0.01114876]
[1767424719091,0.00036071,89701.0,89695.0,0.01114889]
[1767424719286,0.00036071,89701.0,89696.0,0.01114876]
[1767424719975,0.00036071,89701.0,89695.0,0.01114889]
[1767424720486,0.01114827,89700.0,89692.0,0.01114926]
[1767424720672,0.00036071,89701.0,89695.0,0.01114889]
[1767424721697,0.000999,89695.0,89693.0,0.01114914]
[1767424721876,0.01150885,89701.0,89685.0,0.01115013]
[1767424721877,0.01114914,89693.0,89685.0,0.01115013]
[1767424722083,0.01114901,89694.0,89686.0,0.01115001]
[1767424722302,0.01114914,89693.0,89687.0,0.01114988]
[1767424722503,0.01114901,89694.0,89685.0,0.01115013]
[1767424722829,0.01114926,89692.0,89685.0,0.01115013]
[1767424723023,0.01114939,89691.0,89685.0,0.01115013]
[1767424723233,0.01114926,89692.0,89686.0,0.01115001]
[1767424723527,0.01114926,89692.0,89685.0,0.01115013]
[1767424723827,0.01114901,89694.0,89688.0,0.01114976]
[1767424724289,0.06690356,89697.0,89690.0,0.06093533]
[1767424724290,0.02230864,89697.0,89690.0,0.06093533]
[1767424724508,0.02230864,89697.0,89692.0,0.04978582]
[1767424724711,0.01116,89697.0,89692.0,0.04978582]
[1767424725299,0.01116,89697.0,89692.0,0.06093508]
[1767424725499,0.01116,89697.0,89693.0,0.01114914]
[1767424725725,0.01114653,89714.0,89702.0,0.06093384]
[1767424726059,0.01136,89715.0,89709.0,0.01114715]
[1767424726225,0.01136,89715.0,89711.0,0.04978582]
[1767424727320,0.02230615,89717.0,89711.0,0.06093272]
[1767424727523,0.01114628,89716.0,89711.0,0.04978582]
[1767424728954,0.02230615,89717.0,89711.0,0.04978582]
[1767424729195,0.01116,89717.0,89711.0,0.06093272]
[1767424729538,0.0111464,89715.0,89709.0,0.01114715]
[1767424730189,0.01114628,89716.0,89709.0,0.01114715]
[1767424730414,0.02230615,89717.0,89711.0,0.0111469]
[1767424730565,0.02230615,89717.0,89710.0,0.01114702]
[1767424730801,0.02230615,89717.0,89711.0,0.0111469]
[1767424731013,0.01116,89717.0,89711.0,0.0111469]
[1767424731754,0.02230615,89717.0,89710.0,0.01114702]
[1767424731902,0.01114615,89717.0,89711.0,0.0111469]
[1767424732103,0.01116,89717.0,89711.0,0.0111469]
[1767424732753,0.01116,89717.0,89711.0,0.01057473]
[1767424732951,0.02230615,89717.0,89710.0,0.01114702]
[1767424733150,0.01114628,89716.0,89709.0,0.01114715]
[1767424733364,0.01114628,89716.0,89710.0,0.01114702]
[1767424733732,0.000999,89710.0,89708.0,0.01114727]
[1767424734129,0.0111464,89715.0,89708.0,0.01114727]
[1767424735079,0.01114665,89713.0,89703.0,0.05573931]
[1767424735229,0.01116,89717.0,89700.0,0.26865805]
[1767424735230,0.000999,89708.0,89702.0,0.01114802]
[1767424735647,0.01114702,89710.0,89704.0,0.01114777]
[1767424736098,0.06688269,89710.0,89700.0,0.21887223]
[1767424736310,0.05573625,89709.0,89701.0,0.01114814]
[1767424736611,0.01114727,89708.0,89701.0,0.05574073]
[1767424736760,0.0111469,89711.0,89704.0,0.01114777]
[1767424736984,0.01114702,89710.0,89704.0,0.01114777]
[1767424737179,0.0111469,89711.0,89704.0,0.01114777]
[1767424737583,0.01114852,89698.0,89695.0,0.0002]
[1767424737948,0.05574136,89700.0,89695.0,0.0002]
[1767424738145,0.01114839,89699.0,89695.0,0.0002]
[1767424738342,0.01110481,89699.0,89695.0,0.0002]
[1767424738548,0.01114839,89699.0,89691.0,0.05574671]
[1767424738855,0.01114814,89701.0,89693.0,0.01114914]
[1767424739062,0.01114827,89700.0,89692.0,0.01150997]
[1767424739362,0.01114864,89697.0,89692.0,0.00036071]
[1767424739565,0.01114852,89698.0,89692.0,0.00036071]
[1767424739993,0.06008637,89696.0,89692.0,0.00036071]
[1767424740174,0.04893761,89696.0,89692.0,0.00036071]
[1767424740376,0.06008662,89694.0,89683.0,0.05575181]
[1767424740718,0.01114926,89692.0,89684.0,0.01116]
[1767424740942,0.000439,89684.0,89682.0,0.0002]
[1767424741111,0.01115013,89685.0,89682.0,0.0002]
[1767424741331,0.06690142,89685.0,89682.0,0.0002]
[1767424741561,0.01115013,89685.0,89682.0,0.0002]
[1767424741698,0.01114976,89688.0,89685.0,0.00056]
[1767424741892,0.01114963,89689.0,89685.0,0.00056]
[1767424742110,0.06689657,89691.0,89682.0,0.0113505]
[1767424742111,0.06008712,89690.0,89683.0,0.01115038]
[1767424742751,0.01115013,89685.0,89682.0,0.0002]
[1767424743403,0.01115001,89686.0,89676.0,0.01116]
[1767424743615,0.01115013,89685.0,89676.0,0.01116]
[1767424743826,0.01115038,89683.0,89676.0,0.01116]
[1767424744030,0.01115013,89685.0,89677.0,0.01115113]
[1767424744231,0.0111505,89682.0,89676.0,0.01116]
[1767424744570,0.01115075,89680.0,89676.0,0.010721]
[1767424744815,0.01115088,89679.0,89676.0,0.010721]
[1767424744999,0.01115113,89677.0,89674.0,0.0001498]
[1767424745192,0.011151,89678.0,89674.0,0.0001498]
[1767424745847,0.01115063,89681.0,89674.0,0.0113013]
[1767424746026,0.0111505,89682.0,89678.0,0.000999]
[1767424746377,0.0111505,89682.0,89675.0,0.01115137]
[1767424746672,0.0111505,89682.0,89676.0,0.01115125]
[1767424746879,0.0111505,89682.0,89675.0,0.01115137]
[1767424747084,0.01115038,89683.0,89676.0,0.01115125]
[1767424747276,0.01115013,89685.0,89683.0,0.000999]
[1767424747436,0.01114976,89688.0,89678.0,0.06690573]
[1767424747646,0.01114988,89687.0,89681.0,0.01115063]
[1767424748427,0.01115001,89686.0,89680.0,0.01115075]
[1767424748594,0.01114988,89687.0,89680.0,0.01115075]
[1767424748957,0.01114976,89688.0,89681.0,0.01115063]
[1767424750094,0.01114988,89687.0,89681.0,0.01115063]
[1767424750295,0.01114988,89687.0,89680.0,0.01115075]
[1767424750501,0.01114988,89687.0,89681.0,0.01115063]
[1767424750699,0.01115001,89686.0,89680.0,0.01115075]
[1767424751697,0.01114976,89688.0,89686.0,0.000999]
[1767424751899,0.01165542,89689.0,89686.0,0.000999]
[1767424752102,0.01114889,89695.0,89685.0,0.01115013]
[1767424752337,0.02230889,89695.0,89688.0,0.01114976]
[1767424752477,0.01114914,89693.0,89686.0,0.01115001]
[1767424752671,0.01114926,89692.0,89686.0,0.01115001]
[1767424752879,0.01150949,89694.0,89688.0,0.01114976]
[1767424753082,0.01150949,89694.0,89686.0,0.01115001]
[1767424753301,0.01150949,89694.0,89687.0,0.01114988]
[1767424753786,0.01150949,89694.0,89685.0,0.01115013]
[1767424754002,0.01150949,89694.0,89686.0,0.01115001]
[1767424754242,0.01150949,89694.0,89687.0,0.01114988]
[1767424754779,0.01150949,89694.0,89688.0,0.01114976]
[1767424755302,0.00036048,89694.0,89689.0,0.04966783]
[1767424755501,0.00036048,89694.0,89690.0,0.01114951]
[1767424755704,0.00036048,89694.0,89687.0,0.01114988]
[1767424755876,0.01150949,89694.0,89688.0,0.01114976]
[1767424756283,0.00036048,89694.0,89689.0,0.01114963]
[1767424756483,0.00036048,89694.0,89690.0,0.01114951]
[1767424756680,0.00036048,89694.0,89689.0,0.01114963]
[1767424756879,0.00036048,89694.0,89692.0,0.04966783]
[1767424757127,4.8e-07,89694.0,89692.0,0.04966783]
[1767424757901,4.8e-07,89694.0,89692.0,0.0557458]
[1767424758139,4.8e-07,89694.0,89692.0,0.10541363]
[1767424758321,4.8e-07,89694.0,89693.0,0.04966783]
[1767424758864,0.01116,89702.0,89696.0,0.01114876]
[1767424759010,0.01125643,89702.0,89698.0,0.01114852]
[1767424759213,9.643e-05,89702.0,89698.0,0.01114852]
[1767424759466,9.643e-05,89702.0,89697.0,0.06081647]
[1767424759653,0.01124445,89702.0,89697.0,0.04966783]
[1767424760000,0.01114814,89701.0,89697.0,0.04966783]
[1767424760198,0.01114814,89701.0,89697.0,0.04930783]
[1767424760629,0.01114827,89700.0,89694.0,0.01114901]
[1767424760829,0.01124445,89702.0,89696.0,0.01114876]
[1767424761433,0.01114814,89701.0,89695.0,0.01114889]
[1767424761633,0.01124445,89702.0,89696.0,0.01114876]
[1767424762222,9.643e-05,89702.0,89697.0,0.01114864]
[1767424762833,4.3e-07,89702.0,89698.0,0.01114852]
[1767424763472,4.3e-07,89702.0,89700.0,0.04966783]
[1767424763666,4.3e-07,89702.0,89701.0,0.04966783]
[1767424764001,0.01114727,89708.0,89701.0,0.04966783]
[1767424764002,0.01114727,89708.0,89702.0,0.06081585]
[1767424764202,0.01114702,89710.0,89702.0,0.06081585]
[1767424764401,0.01114702,89710.0,89702.0,0.05995789]
[1767424764606,0.01114702,89710.0,89703.0,0.01114789]
[1767424764740,0.01114702,89710.0,89704.0,0.04966783]
[1767424764940,0.0111474,89707.0,89704.0,0.04966783]
[1767424765181,0.0111474,89707.0,89704.0,0.04957183]
[1767424765398,0.01114765,89705.0,89702.0,0.04966783]
[1767424765902,0.01114777,89704.0,89698.0,0.06081635]
[1767424766049,0.01114765,89705.0,89698.0,0.04966783]
[1767424766235,0.01114802,89702.0,89698.0,0.04966783]
[1767424766432,0.04956896,89702.0,89692.0,0.01134926]
[1767424766675,0.26850546,89702.0,89693.0,0.06689456]
[1767424766878,6.427e-05,89702.0,89693.0,0.06689456]
[1767424767053,0.01114814,89701.0,89693.0,0.01114914]
[1767424767256,0.01114827,89700.0,89693.0,0.01114914]
[1767424767455,0.01114839,89699.0,89693.0,0.01114914]
[1767424767860,0.01114852,89698.0,89692.0,0.01134926]
[1767424768100,0.01114839,89699.0,89692.0,0.01134926]
[1767424768593,0.01114839,89699.0,89693.0,0.01114914]
[1767424768796,0.01114852,89698.0,89692.0,0.0002]
[1767424768943,0.01114852,89698.0,89693.0,0.01114914]
[1767424769162,0.01114852,89698.0,89692.0,0.01134926]
[1767424769577,0.01114864,89697.0,89692.0,0.04948896]
[1767424770132,0.01114864,89697.0,89692.0,0.06063822]
[1767424770438,0.01114864,89697.0,89692.0,0.04948896]
[1767424770796,0.01114852,89698.0,89692.0,0.06063822]
[1767424771330,0.01114864,89697.0,89692.0,0.0002]
[1767424771673,0.01114827,89700.0,89692.0,0.01134926]
[1767424771848,0.01114852,89698.0,89692.0,0.01134926]
[1767424773444,0.01114827,89700.0,89693.0,0.06689481]
[1767424773665,0.01114814,89701.0,89696.0,0.01114876]
[1767424773869,0.05573948,89704.0,89696.0,0.01114876]
[1767424773870,0.01114777,89704.0,89701.0,0.05028796]
[1767424774073,0.07804625,89705.0,89701.0,0.04928896]
[1767424774278,0.01114765,89705.0,89699.0,0.04928896]
[1767424774425,0.01114727,89708.0,89701.0,0.0604371]
[1767424774605,0.01114727,89708.0,89702.0,0.01114802]
[1767424774813,0.01114765,89705.0,89701.0,0.04928896]
[1767424775027,0.01114777,89704.0,89701.0,0.04928896]
[1767424775230,0.01114727,89708.0,89704.0,0.000999]
[1767424775431,0.02230715,89709.0,89704.0,0.000999]
[1767424775636,0.01114727,89708.0,89702.0,0.01114802]
[1767424775841,0.0111474,89707.0,89702.0,0.04928896]
[1767424776069,0.01114752,89706.0,89702.0,0.04928896]
[1767424776272,0.0111474,89707.0,89702.0,0.04928896]
[1767424776477,0.01114765,89705.0,89702.0,0.04928896]
[1767424776743,0.01114752,89706.0,89702.0,0.04928896]
[1767424777289,0.01114765,89705.0,89702.0,0.04928896]
[1767424777711,0.01114752,89706.0,89702.0,0.04928896]
[1767424777926,0.01114765,89705.0,89702.0,0.04928896]
[1767424779014,0.01114802,89702.0,89698.0,0.04928896]
[1767424779188,0.01114814,89701.0,89695.0,0.07159785]
[1767424779391,0.01114827,89700.0,89695.0,0.06044896]
[1767424779648,0.01114827,89700.0,89695.0,0.01116]
[1767424779932,0.01114814,89701.0,89695.0,0.01116]
[1767424779933,0.01114839,89699.0,89695.0,0.01116]
[1767424780132,0.01114814,89701.0,89695.0,0.02230889]
[1767424780293,0.01114827,89700.0,89695.0,0.01116]
[1767424780496,0.06689376,89695.0,89692.0,0.0002]
[1767424780811,0.06689376,89695.0,89692.0,0.00030799]
[1767424780812,0.05574555,89694.0,89692.0,0.00030799]
[1767424781229,0.06689376,89695.0,89692.0,0.00030799]
[1767424781430,0.01114889,89695.0,89692.0,0.00030799]
[1767424782372,0.01115013,89685.0,89683.0,0.01116]
[1767424782566,0.01115001,89686.0,89685.0,0.000999]
[1767424782763,0.01115001,89686.0,89683.0,0.01152048]
[1767424783347,0.06690056,89686.0,89683.0,0.01152048]
[1767424783714,0.01115001,89686.0,89683.0,0.01152048]
[1767424783886,0.01114951,89690.0,89686.0,0.000999]
[1767424784086,0.01114939,89691.0,89686.0,0.000999]
[1767424784385,0.01116,89692.0,89686.0,0.04928896]
[1767424784386,0.02230926,89692.0,89686.0,0.04928896]
[1767424784588,0.01114939,89691.0,89686.0,0.06043897]
[1767424784787,0.02230926,89692.0,89686.0,0.06043897]
[1767424785385,0.02230926,89692.0,89687.0,0.01114988]
[1767424785583,0.010161,89692.0,89687.0,0.01114988]
[1767424785792,0.02131026,89692.0,89686.0,0.01115001]
[1767424786208,0.02131026,89692.0,89685.0,0.01115013]
[1767424786373,0.01114939,89691.0,89685.0,0.01115013]
[1767424786651,0.05574558,89694.0,89684.0,0.01115026]
[1767424786899,0.01114889,89695.0,89689.0,0.01114963]
[1767424787100,0.01114901,89694.0,89688.0,0.01114976]
[1767424787300,0.01114889,89695.0,89687.0,0.01114988]
[1767424787505,0.01114939,89691.0,89685.0,0.01115013]
[1767424787722,0.01114951,89690.0,89684.0,0.01115026]
[1767424787883,0.01114914,89693.0,89687.0,0.01114988]
[1767424788086,0.01114926,89692.0,89687.0,0.01114988]
[1767424788284,0.01114914,89693.0,89687.0,0.01114988]
[1767424788737,0.01114926,89692.0,89687.0,0.01114988]
[1767424788927,0.01114901,89694.0,89688.0,0.01114976]
[1767424789150,0.01116,89695.0,89689.0,0.01114963]
[1767424789621,0.000999,89689.0,89687.0,0.01114988]
[1767424789930,0.000999,89689.0,89686.0,0.01115001]
[1767424790226,0.01114926,89692.0,89687.0,0.01114988]
[1767424790431,0.01114926,89692.0,89686.0,0.01115001]
[1767424790605,0.01114926,89692.0,89687.0,0.01114988]
[1767424790805,0.000999,89687.0,89685.0,0.01115013]
[1767424791007,0.000999,89687.0,89683.0,0.00036048]
[1767424791008,0.01214888,89687.0,89683.0,0.00036048]
[1767424791204,0.01114988,89687.0,89683.0,0.00036048]
[1767424791428,0.01114976,89688.0,89683.0,0.00036048]
[1767424791633,0.06689942,89687.0,89683.0,0.00036048]
[1767424791834,0.06689942,89687.0,89683.0,4.8e-07]
[1767424791835,0.01115001,89686.0,89683.0,4.8e-07]
[1767424792016,0.06690053,89686.0,89683.0,4.8e-07]
[1767424792220,0.06690053,89686.0,89681.0,0.00049545]
[1767424792221,0.06690156,89684.0,89681.0,0.00049545]
[1767424792425,0.05575254,89682.0,89681.0,4.5e-07]
[1767424792846,0.05575238,89683.0,89681.0,4.5e-07]
[1767424793044,0.06690156,89684.0,89681.0,4.5e-07]
[1767424793379,0.06690156,89684.0,89674.0,0.0670584]
[1767424793380,0.011151,89678.0,89674.0,0.0001498]
[1767424793665,0.05575627,89676.0,89674.0,5.8e-06]
[1767424794408,0.01115113,89677.0,89674.0,5.8e-06]
[1767424795062,0.06690456,89680.0,89677.0,0.000999]
[1767424795266,0.01115075,89680.0,89677.0,0.000999]
[1767424795467,0.011151,89678.0,89674.0,5.8e-06]
[1767424795690,0.01115088,89679.0,89674.0,5.8e-06]
[1767424795975,0.01115063,89681.0,89674.0,5.8e-06]
[1767424795976,0.01115063,89681.0,89676.0,0.01115125]
[1767424796116,0.01116,89682.0,89675.0,0.06044033]
[1767424796328,0.01116,89684.0,89682.0,0.05018798]
[1767424796556,0.01114926,89692.0,89684.0,0.04928896]
[1767424796762,0.01165542,89689.0,89685.0,0.10503964]
[1767424797202,0.01165542,89689.0,89685.0,0.04928896]
[1767424797406,4.5e-07,89686.0,89685.0,0.04928896]
[1767424798534,0.01115026,89684.0,89679.0,0.01115088]
[1767424798745,0.01115026,89684.0,89679.0,0.06043984]
[1767424798976,0.01115026,89684.0,89679.0,0.04928896]
[1767424799371,0.0111505,89682.0,89677.0,0.04928896]
[1767424799571,0.01115038,89683.0,89677.0,0.06044009]
[1767424799777,0.01115075,89680.0,89677.0,0.04928896]
[1767424799905,0.01115075,89680.0,89677.0,0.04882896]
[1767424800117,0.01115088,89679.0,89676.0,0.0002]
[1767424800944,0.01115038,89683.0,89679.0,0.04752514]
[1767424801159,0.06690156,89684.0,89679.0,0.04752514]
[1767424801415,0.02231046,89686.0,89682.0,0.04652614]
[1767424801624,0.02231046,89686.0,89679.0,0.01214988]
[1767424801625,4.5e-07,89686.0,89681.0,0.05767677]
[1767424801835,0.01115013,89685.0,89679.0,0.01115088]
[1767424802039,0.01115038,89683.0,89680.0,0.04652614]
[1767424802682,0.06690234,89683.0,89680.0,0.04652614]
[1767424802899,0.01115088,89679.0,89676.0,0.0002]
[1767424803320,0.01115038,89683.0,89679.0,0.000999]
[1767424803728,0.01115026,89684.0,89679.0,0.01115088]
[1767424803943,0.01115026,89684.0,89678.0,0.011151]
[1767424804370,0.01115026,89684.0,89676.0,0.01135125]
[1767424804371,0.01115063,89681.0,89676.0,0.01135125]
[1767424804580,0.01115088,89679.0,89676.0,0.0002]
[1767424804786,0.05575565,89677.0,89676.0,1e-08]
[1767424804991,0.06690529,89679.0,89676.0,1e-08]
[1767424805650,0.05575559,89678.0,89676.0,1e-08]
[1767424808407,0.06690529,89679.0,89676.0,1e-08]
[1767424808612,0.05575565,89677.0,89676.0,1e-08]
[1767424809287,0.04672868,89682.0,89661.0,0.04652614]
[1767424809488,0.01115249,89666.0,89656.0,0.01130354]
[1767424809658,0.05576311,89665.0,89656.0,0.01130354]
[1767424809856,0.02235237,89667.0,89659.0,0.01115336]
[1767424810037,0.0112,89667.0,89665.0,0.000999]
[1767424810239,0.0112,89667.0,89660.0,0.06691929]
[1767424810462,0.0112,89667.0,89659.0,0.01115336]
[1767424810463,0.01115249,89666.0,89659.0,0.01115336]
[1767424810806,0.01115249,89666.0,89661.0,0.01115312]
[1767424810960,0.01115262,89665.0,89660.0,0.01115324]
[1767424811125,0.01115287,89663.0,89654.0,0.01115399]
[1767424811326,0.01115225,89668.0,89620.0,0.2001498]
[1767424811327,0.01115187,89671.0,89665.0,0.01115262]
[1767424811595,0.02235187,89671.0,89665.0,0.05767876]
[1767424811776,0.01115249,89666.0,89661.0,0.01115312]
[1767424811994,0.01115249,89666.0,89660.0,0.01115324]
[1767424812191,0.01115262,89665.0,89658.0,0.01115349]
[1767424812368,0.01115274,89664.0,89659.0,0.01115336]
[1767424812577,0.01115299,89662.0,89656.0,0.0001498]
[1767424812753,0.01115336,89659.0,89656.0,0.0001498]
[1767424812988,0.01115312,89661.0,89656.0,0.0001498]
[1767424813328,0.06691708,89664.0,89657.0,0.01115361]
[1767424813515,0.01115299,89662.0,89656.0,0.01130354]
[1767424813718,0.01115287,89663.0,89658.0,0.01115349]
[1767424813944,0.01115287,89663.0,89658.0,0.00036045]
[1767424814360,0.01115274,89664.0,89659.0,0.01115336]
[1767424814565,0.01115274,89664.0,89658.0,0.01151394]
[1767424814766,0.01115287,89663.0,89658.0,0.00036045]
[1767424814940,0.01115312,89661.0,89658.0,0.00036045]
[1767424815351,0.01115312,89661.0,89658.0,4.5e-07]
[1767424815569,0.05576622,89660.0,89658.0,4.5e-07]
[1767424816502,0.01115312,89661.0,89660.0,0.00036]
[1767424816719,0.01115299,89662.0,89660.0,0.00036]
[1767424816902,0.01115299,89662.0,89658.0,4.5e-07]
[1767424817407,0.01115312,89661.0,89658.0,4.5e-07]
[1767424817633,0.01115287,89663.0,89658.0,4.5e-07]
[1767424817790,0.02235274,89664.0,89661.0,0.00036]
[1767424817988,0.02235274,89664.0,89658.0,4.5e-07]
[1767424817989,0.01115299,89662.0,89658.0,4.5e-07]
[1767424818577,0.01115312,89661.0,89658.0,4.5e-07]
[1767424821188,0.05576622,89660.0,89658.0,4.5e-07]
[1767424822211,0.04672868,89659.0,89658.0,4.5e-07]
[1767424822813,0.05576622,89660.0,89641.0,0.0111556]
[1767424822814,0.01115448,89650.0,89641.0,0.0111556]
[1767424823193,0.01115473,89648.0,89642.0,0.01115548]
[1767424823363,0.01079461,89649.0,89642.0,0.01115548]
[1767424823583,0.01115486,89647.0,89639.0,0.05772614]
[1767424823719,0.01115473,89648.0,89640.0,0.0557785]
[1767424823920,0.01151471,89650.0,89644.0,0.01115523]
[1767424824502,0.01115473,89648.0,89643.0,0.01115536]
[1767424824710,0.00036023,89650.0,89646.0,0.01115498]
[1767424824905,0.02979377,89684.0,89642.0,0.0557769]
[1767424825112,0.01115299,89662.0,89655.0,0.01115386]
[1767424825311,0.0112,89661.0,89656.0,0.01115374]
[1767424825530,0.05792868,89661.0,89655.0,0.06692312]
[1767424825760,0.05792868,89661.0,89655.0,0.01115386]
[1767424825953,0.0112,89661.0,89658.0,0.06692094]
[1767424826565,0.02235312,89661.0,89655.0,0.01115386]
[1767424826769,0.01038967,89661.0,89655.0,0.01115386]
[1767424826979,0.05788192,89660.0,89651.0,0.05577151]
[1767424827155,0.000999,89655.0,89651.0,0.01115436]
[1767424827358,0.000999,89655.0,89652.0,0.01115424]
[1767424827557,0.05788254,89655.0,89647.0,0.01115486]
[1767424827743,0.05788254,89655.0,89648.0,0.01115473]
[1767424827946,0.05788254,89655.0,89649.0,0.01115461]
[1767424828578,0.000999,89649.0,89645.0,0.01115511]
[1767424828934,0.000999,89649.0,89640.0,0.05577812]
[1767424828935,0.05788354,89647.0,89640.0,0.05577812]
[1767424829107,0.04672868,89645.0,89639.0,0.01115585]
[1767424829309,0.0111556,89641.0,89634.0,0.01115648]
[1767424829482,0.0111556,89641.0,89638.0,0.00051003]
[1767424829875,0.01115548,89642.0,89638.0,0.00051003]
[1767424830272,0.05913046,89643.0,89638.0,0.00051003]
[1767424830460,0.05913046,89643.0,89638.0,3e-08]
[1767424830461,0.0591307,89641.0,89638.0,3e-08]
[1767424830695,0.0479751,89641.0,89638.0,3e-08]
[1767424831042,0.0474651,89641.0,89638.0,3e-08]
[1767424831342,0.0479751,89640.0,89638.0,3e-08]
[1767424831732,0.0479751,89640.0,89639.0,0.05577929]
[1767424832159,0.0479751,89645.0,89643.0,0.01115536]
[1767424832414,0.0112,89646.0,89643.0,0.01115536]
[1767424832613,0.0112,89646.0,89640.0,0.06693391]
[1767424832742,0.0591751,89646.0,89643.0,0.01015636]
[1767424832942,0.0591751,89646.0,89642.0,0.01115548]
[1767424833183,0.0581761,89646.0,89642.0,0.01115548]
[1767424833763,0.01115511,89645.0,89640.0,0.01115573]
[1767424833961,0.0479751,89645.0,89641.0,0.0111556]
[1767424834147,0.0479751,89645.0,89640.0,0.01115573]
[1767424834347,0.05913021,89645.0,89640.0,0.01115573]
[1767424834561,0.0479751,89644.0,89639.0,0.01115585]
[1767424835327,0.0479751,89644.0,89641.0,0.0111556]
[1767424835737,0.0581761,89646.0,89642.0,0.01115548]
[1767424836082,0.0581761,89646.0,89641.0,0.0111556]
[1767424836282,0.0479751,89645.0,89638.0,3e-08]
[1767424836505,0.0111556,89641.0,89638.0,3e-08]
[1767424836751,0.05577867,89640.0,89638.0,3e-08]
[1767424837145,0.10375377,89640.0,89638.0,3e-08]
[1767424837345,0.01115697,89630.0,89624.0,0.01115772]
[1767424837644,0.01115697,89630.0,89620.0,0.0001498]
[1767424837645,0.01115785,89623.0,89620.0,0.0001498]
[1767424837845,0.0479751,89622.0,89620.0,0.0001498]
[1767424838000,0.01115747,89626.0,89618.0,0.01115847]
[1767424838198,0.0479751,89628.0,89619.0,0.01115834]
[1767424838416,0.0479751,89628.0,89625.0,0.0111576]
[1767424838980,0.01156006,89630.0,89628.0,0.05578555]
[1767424839111,0.00036006,89630.0,89627.0,0.0669436]
[1767424839320,0.0112,89635.0,89633.0,0.0111566]
[1767424839532,0.0112,89635.0,89633.0,0.01122087]
[1767424839729,0.0112,89635.0,89634.0,0.0557824]
[1767424839960,0.0112,89635.0,89633.0,0.01122087]
[1767424840352,0.00093473,89633.0,89632.0,0.01115672]
[1767424840548,0.0010427,89633.0,89632.0,0.01115672]
[1767424840754,0.00010797,89633.0,89632.0,0.06694036]